[Event "*** Titled Tuesday Blitz"]
[Site "Chess.com"]
[Date "2020.04.28"]
[Round "2"]
[White "GMJustin"]
[Black "RianKapriaga"]
[Result "1-0"]
[WhiteElo "2432"]
[BlackElo "2182"]
[TimeControl "180+1"]
[EndTime "10:17:37 PDT"]
[Termination "GMJustin won by checkmate"]

1. e4 {[%clk 0:02:51.2]} 1... e5 {[%clk 0:02:58.8]} 2. Nc3 {[%clk 0:02:49.7]}
2... Nc6 {[%clk 0:02:54.2]} 3. f4 {[%clk 0:02:45.3]} 3... Bc5 {[%clk 0:02:38]}
4. fxe5 {[%clk 0:02:35.3]} 4... Bxg1 {[%clk 0:02:26.9]} 5. Rxg1 {[%clk
0:02:34.9]} 5... Qh4+ {[%clk 0:02:26.8]} 6. g3 {[%clk 0:02:33.9]} 6... Qxh2
{[%clk 0:02:20.8]} 7. Rg2 {[%clk 0:02:31.1]} 7... Qh1 {[%clk 0:02:17]} 8. Nd5
{[%clk 0:02:16.2]} 8... Kd8 {[%clk 0:02:02.1]} 9. d4 {[%clk 0:02:10.3]} 9... d6
{[%clk 0:02:00.5]} 10. Bg5+ {[%clk 0:01:58.5]} 10... Nge7 {[%clk 0:01:59.5]} 11.
exd6 {[%clk 0:01:40.1]} 11... cxd6 {[%clk 0:01:57.9]} 12. Nxe7 {[%clk
0:01:24.4]} 12... Nxe7 {[%clk 0:01:56.3]} 13. Qf3 {[%clk 0:01:05.1]} 13... Bh3
{[%clk 0:01:40.8]} 14. Qxf7 {[%clk 0:00:37.4]} 14... Re8 {[%clk 0:01:36.5]} 15.
O-O-O {[%clk 0:00:36.9]} 15... Bxg2 {[%clk 0:00:59.4]} 16. Bb5 {[%clk
0:00:35.3]} 16... Qxd1+ {[%clk 0:00:34.7]} 17. Kxd1 {[%clk 0:00:35.3]} 17... Kc7
{[%clk 0:00:21.7]} 18. Bxe8 {[%clk 0:00:32.5]} 18... Rxe8 {[%clk 0:00:20.5]} 19.
Qxe8 {[%clk 0:00:30.7]} 19... Nc6 {[%clk 0:00:20.6]} 20. d5 {[%clk 0:00:29.5]}
20... Bxe4 {[%clk 0:00:13.7]} 21. dxc6 {[%clk 0:00:23.1]} 21... bxc6 {[%clk
0:00:13.8]} 22. Qxe4 {[%clk 0:00:20.3]} 22... Kb7 {[%clk 0:00:13.4]} 23. Qe7+
{[%clk 0:00:19.2]} 23... Kb6 {[%clk 0:00:13.3]} 24. Be3+ {[%clk 0:00:18.9]}
24... Kb5 {[%clk 0:00:13.7]} 25. Qxd6 {[%clk 0:00:19]} 25... Ka6 {[%clk
0:00:11.9]} 26. Qxc6+ {[%clk 0:00:18.5]} 26... Ka5 {[%clk 0:00:12.3]} 27. Bd2#
{[%clk 0:00:19]} 1-0

[Event "*** Titled Tuesday Blitz"]
[Site "Chess.com"]
[Date "2020.04.28"]
[Round "2"]
[White "StegariuVlad"]
[Black "EugeneRougon"]
[Result "0-1"]
[WhiteElo "2500"]
[BlackElo "2743"]
[TimeControl "180+1"]
[EndTime "10:17:38 PDT"]
[Termination "EugeneRougon won by checkmate"]

1. e4 {[%clk 0:03:00.9]} 1... e6 {[%clk 0:02:59.5]} 2. d4 {[%clk 0:02:05.8]}
2... d5 {[%clk 0:02:59]} 3. Nd2 {[%clk 0:01:51.7]} 3... Be7 {[%clk 0:02:58.7]}
4. exd5 {[%clk 0:01:49.3]} 4... exd5 {[%clk 0:02:56.3]} 5. Bd3 {[%clk
0:01:41.5]} 5... Nf6 {[%clk 0:02:55.4]} 6. Ngf3 {[%clk 0:01:40.8]} 6... O-O
{[%clk 0:02:54.2]} 7. O-O {[%clk 0:01:40.7]} 7... c5 {[%clk 0:02:46.6]} 8. dxc5
{[%clk 0:01:38]} 8... Bxc5 {[%clk 0:02:47.5]} 9. Nb3 {[%clk 0:01:38.1]} 9... Bb6
{[%clk 0:02:47.5]} 10. Bg5 {[%clk 0:01:37.1]} 10... Nc6 {[%clk 0:02:42.4]} 11.
c3 {[%clk 0:01:34.1]} 11... Bg4 {[%clk 0:02:36.3]} 12. h3 {[%clk 0:01:33.4]}
12... Bh5 {[%clk 0:02:35.6]} 13. Qc2 {[%clk 0:01:29]} 13... Bxf3 {[%clk
0:02:25.8]} 14. gxf3 {[%clk 0:01:28.7]} 14... Qd6 {[%clk 0:02:16.3]} 15. Kg2
{[%clk 0:01:20.8]} 15... Bc7 {[%clk 0:01:46.7]} 16. Rh1 {[%clk 0:01:17.7]} 16...
g6 {[%clk 0:01:46.7]} 17. h4 {[%clk 0:00:49.9]} 17... Nh5 {[%clk 0:01:46.1]} 18.
Qd2 {[%clk 0:00:43.9]} 18... Rfe8 {[%clk 0:01:36.3]} 19. Be3 {[%clk 0:00:40.8]}
19... Ne5 {[%clk 0:01:03]} 20. Be2 {[%clk 0:00:39.3]} 20... Nc6 {[%clk 0:00:51]}
21. Rad1 {[%clk 0:00:38.3]} 21... Rad8 {[%clk 0:00:50.4]} 22. Nd4 {[%clk
0:00:33.3]} 22... Nxd4 {[%clk 0:00:46.8]} 23. Qxd4 {[%clk 0:00:32]} 23... Bb6
{[%clk 0:00:43.8]} 24. Qd2 {[%clk 0:00:24.1]} 24... Rxe3 {[%clk 0:00:26.9]} 25.
fxe3 {[%clk 0:00:25]} 25... Qg3+ {[%clk 0:00:27.1]} 26. Kf1 {[%clk 0:00:24.9]}
26... Nf4 {[%clk 0:00:27.2]} 27. Rg1 {[%clk 0:00:20.6]} 27... Qh3+ {[%clk
0:00:26.8]} 28. Ke1 {[%clk 0:00:20.7]} 28... Qh2 {[%clk 0:00:24.7]} 29. Kf1
{[%clk 0:00:18.6]} 29... Qh3+ {[%clk 0:00:22.7]} 30. Ke1 {[%clk 0:00:18.5]}
30... Re8 {[%clk 0:00:20.7]} 31. exf4 {[%clk 0:00:17.4]} 31... Qxh4+ {[%clk
0:00:19.9]} 32. Kf1 {[%clk 0:00:16]} 32... Qf2# {[%clk 0:00:20.1]} 0-1

[Event "*** Titled Tuesday Blitz"]
[Site "Chess.com"]
[Date "2020.04.28"]
[Round "2"]
[White "ChessBitl"]
[Black "Vamostodorecto"]
[Result "1-0"]
[WhiteElo "2287"]
[BlackElo "2488"]
[TimeControl "180+1"]
[EndTime "10:17:39 PDT"]
[Termination "ChessBitl won by checkmate"]

1. e4 {[%clk 0:02:23.7]} 1... e5 {[%clk 0:02:59.4]} 2. Nf3 {[%clk 0:02:22.9]}
2... Nc6 {[%clk 0:02:59.9]} 3. d4 {[%clk 0:02:22.6]} 3... exd4 {[%clk
0:03:00.8]} 4. Bc4 {[%clk 0:02:23.2]} 4... Nf6 {[%clk 0:03:00.8]} 5. O-O {[%clk
0:02:22.7]} 5... Nxe4 {[%clk 0:03:00]} 6. Re1 {[%clk 0:02:22.3]} 6... d5 {[%clk
0:03:00.5]} 7. Bxd5 {[%clk 0:02:22.9]} 7... Qxd5 {[%clk 0:03:01.4]} 8. Nc3
{[%clk 0:02:23.6]} 8... Qa5 {[%clk 0:03:01.7]} 9. Nxe4 {[%clk 0:02:23.1]} 9...
Be6 {[%clk 0:03:02.2]} 10. Bd2 {[%clk 0:02:21.5]} 10... Bb4 {[%clk 0:03:01.5]}
11. Bxb4 {[%clk 0:02:19.8]} 11... Qxb4 {[%clk 0:02:59]} 12. a3 {[%clk
0:02:20.3]} 12... Qb6 {[%clk 0:02:54.5]} 13. Qd3 {[%clk 0:02:20.2]} 13... O-O-O
{[%clk 0:02:48.2]} 14. b4 {[%clk 0:02:19.6]} 14... Rhe8 {[%clk 0:02:24.5]} 15.
Nc5 {[%clk 0:02:18]} 15... g5 {[%clk 0:01:50]} 16. Nxg5 {[%clk 0:02:04.3]} 16...
Nb8 {[%clk 0:01:32.9]} 17. Ngxe6 {[%clk 0:01:50.5]} 17... fxe6 {[%clk
0:01:33.8]} 18. Qxh7 {[%clk 0:01:48.7]} 18... Nd7 {[%clk 0:01:33.5]} 19. Nxd7
{[%clk 0:01:37]} 19... Rxd7 {[%clk 0:01:34.4]} 20. Qe4 {[%clk 0:01:37.2]} 20...
e5 {[%clk 0:01:32.4]} 21. f4 {[%clk 0:01:29.2]} 21... d3+ {[%clk 0:01:22.7]} 22.
Kh1 {[%clk 0:01:29]} 22... d2 {[%clk 0:01:19.4]} 23. Rf1 {[%clk 0:01:11.6]}
23... Red8 {[%clk 0:00:57.6]} 24. Rad1 {[%clk 0:00:54.1]} 24... exf4 {[%clk
0:00:57.6]} 25. Qxf4 {[%clk 0:00:52]} 25... Qc6 {[%clk 0:00:57.4]} 26. c4 {[%clk
0:00:47.8]} 26... Rd4 {[%clk 0:00:43.6]} 27. Qf5+ {[%clk 0:00:41.3]} 27... Kb8
{[%clk 0:00:42.8]} 28. Rf2 {[%clk 0:00:38.4]} 28... Qxc4 {[%clk 0:00:33.7]} 29.
h3 {[%clk 0:00:29.3]} 29... Qc3 {[%clk 0:00:25.7]} 30. Qf3 {[%clk 0:00:22.5]}
30... Rd3 {[%clk 0:00:24]} 31. Qf6 {[%clk 0:00:22.2]} 31... Qxa3 {[%clk
0:00:16.2]} 32. Rfxd2 {[%clk 0:00:19.7]} 32... Rxd2 {[%clk 0:00:15.1]} 33. Qxd8+
{[%clk 0:00:19.1]} 33... Rxd8 {[%clk 0:00:13.4]} 34. Rxd8# {[%clk 0:00:19]} 1-0

[Event "*** Titled Tuesday Blitz"]
[Site "Chess.com"]
[Date "2020.04.28"]
[Round "2"]
[White "korkmaz16"]
[Black "gvanna"]
[Result "0-1"]
[WhiteElo "2253"]
[BlackElo "2473"]
[TimeControl "180+1"]
[EndTime "10:17:39 PDT"]
[Termination "gvanna won on time"]

1. e4 {[%clk 0:02:57.3]} 1... c5 {[%clk 0:02:59.9]} 2. Nc3 {[%clk 0:02:56.2]}
2... g6 {[%clk 0:02:58.7]} 3. f4 {[%clk 0:02:56.7]} 3... Nc6 {[%clk 0:02:57.5]}
4. Nf3 {[%clk 0:02:57.2]} 4... Bg7 {[%clk 0:02:57.5]} 5. Bb5 {[%clk 0:02:57.6]}
5... e6 {[%clk 0:02:56.9]} 6. Bxc6 {[%clk 0:02:50.5]} 6... bxc6 {[%clk
0:02:55.4]} 7. O-O {[%clk 0:02:48.4]} 7... d5 {[%clk 0:02:54]} 8. d3 {[%clk
0:02:47]} 8... Ne7 {[%clk 0:02:53.4]} 9. Qe1 {[%clk 0:02:31]} 9... Rb8 {[%clk
0:02:47.5]} 10. e5 {[%clk 0:02:27.9]} 10... Nf5 {[%clk 0:02:45.8]} 11. Na4
{[%clk 0:02:25.9]} 11... c4 {[%clk 0:02:31.9]} 12. dxc4 {[%clk 0:02:02.3]} 12...
dxc4 {[%clk 0:02:31.5]} 13. Be3 {[%clk 0:01:40.5]} 13... Nxe3 {[%clk 0:02:30.6]}
14. Qxe3 {[%clk 0:01:39.9]} 14... Qa5 {[%clk 0:02:26]} 15. b3 {[%clk 0:01:36.9]}
15... O-O {[%clk 0:02:21.6]} 16. Rfd1 {[%clk 0:01:11]} 16... Ba6 {[%clk
0:02:18.4]} 17. Qc5 {[%clk 0:01:09.7]} 17... Bb5 {[%clk 0:02:12.1]} 18. Nd4
{[%clk 0:01:04.4]} 18... Rfc8 {[%clk 0:02:00.3]} 19. Nf3 {[%clk 0:00:16.1]}
19... Bf8 {[%clk 0:01:52.8]} 20. Rd6 {[%clk 0:00:15.4]} 20... cxb3 {[%clk
0:01:44.1]} 21. axb3 {[%clk 0:00:14.6]} 21... Qc7 {[%clk 0:01:37.8]} 22. Ng5
{[%clk 0:00:13.5]} 22... Rd8 {[%clk 0:01:30.8]} 23. Ne4 {[%clk 0:00:13]} 23...
Bxa4 {[%clk 0:01:26.3]} 24. Rxa4 {[%clk 0:00:11.7]} 24... Bxd6 {[%clk
0:01:26.3]} 25. exd6 {[%clk 0:00:11.6]} 25... Qb6 {[%clk 0:01:26.5]} 26. Rxa7
{[%clk 0:00:11.1]} 26... Qxc5+ {[%clk 0:01:26.1]} 27. Nxc5 {[%clk 0:00:12]}
27... Rxd6 {[%clk 0:01:25.7]} 28. Ne4 {[%clk 0:00:12.2]} 28... Rd4 {[%clk
0:01:24]} 29. Nf6+ {[%clk 0:00:10.1]} 29... Kg7 {[%clk 0:01:22.4]} 30. Nd7
{[%clk 0:00:10.7]} 30... Rd8 {[%clk 0:01:02.1]} 31. Ne5 {[%clk 0:00:10.8]} 31...
Rxf4 {[%clk 0:01:02.3]} 32. h3 {[%clk 0:00:09.9]} 32... Rd1+ {[%clk 0:00:59.3]}
33. Kh2 {[%clk 0:00:09.7]} 33... c5 {[%clk 0:00:59.5]} 34. Rc7 {[%clk
0:00:08.2]} 34... Rd5 {[%clk 0:00:59.2]} 35. Nc6 {[%clk 0:00:07.8]} 35... Rf2
{[%clk 0:00:57.9]} 36. Kg3 {[%clk 0:00:07.7]} 36... Rdd2 {[%clk 0:00:55.4]} 37.
Ne5 {[%clk 0:00:08.3]} 37... Rxg2+ {[%clk 0:00:55]} 38. Kf3 {[%clk 0:00:08.7]}
38... Rdf2+ {[%clk 0:00:53]} 39. Ke3 {[%clk 0:00:08.7]} 39... Re2+ {[%clk
0:00:53.2]} 40. Kd3 {[%clk 0:00:08.6]} 40... Rxe5 {[%clk 0:00:52.7]} 0-1

[Event "*** Titled Tuesday Blitz"]
[Site "Chess.com"]
[Date "2020.04.28"]
[Round "2"]
[White "Chessmatus"]
[Black "Oneofmyturns"]
[Result "0-1"]
[WhiteElo "2346"]
[BlackElo "2672"]
[TimeControl "180+1"]
[EndTime "10:17:40 PDT"]
[Termination "Oneofmyturns won by resignation"]

1. e4 {[%clk 0:03:00.9]} 1... e5 {[%clk 0:02:59.2]} 2. Nf3 {[%clk 0:03:00.9]}
2... Nc6 {[%clk 0:02:59.5]} 3. Bb5 {[%clk 0:03:00.8]} 3... a6 {[%clk 0:02:59.5]}
4. Ba4 {[%clk 0:03:01]} 4... Nf6 {[%clk 0:02:59.8]} 5. O-O {[%clk 0:03:01]} 5...
b5 {[%clk 0:03:00.3]} 6. Bb3 {[%clk 0:03:00.4]} 6... Bc5 {[%clk 0:03:00.8]} 7.
c3 {[%clk 0:02:59.2]} 7... d6 {[%clk 0:03:00.2]} 8. d4 {[%clk 0:02:58.9]} 8...
Bb6 {[%clk 0:02:58.8]} 9. a4 {[%clk 0:02:58.2]} 9... Rb8 {[%clk 0:02:58.5]} 10.
a5 {[%clk 0:02:43.3]} 10... Ba7 {[%clk 0:02:57]} 11. Be3 {[%clk 0:02:42.4]}
11... Ra8 {[%clk 0:02:33.1]} 12. Re1 {[%clk 0:02:29.4]} 12... Bg4 {[%clk
0:02:31]} 13. d5 {[%clk 0:01:53]} 13... Ne7 {[%clk 0:02:16.1]} 14. Bxa7 {[%clk
0:01:27.3]} 14... Rxa7 {[%clk 0:02:17]} 15. c4 {[%clk 0:01:27.8]} 15... bxc4
{[%clk 0:02:00.5]} 16. Bxc4 {[%clk 0:01:25.4]} 16... O-O {[%clk 0:02:01]} 17.
Nc3 {[%clk 0:01:24.3]} 17... Nd7 {[%clk 0:01:55.8]} 18. h3 {[%clk 0:01:23.1]}
18... Bh5 {[%clk 0:01:54.6]} 19. Qe2 {[%clk 0:01:09.8]} 19... Qc8 {[%clk
0:01:22.7]} 20. g4 {[%clk 0:01:00.9]} 20... Bg6 {[%clk 0:01:22.1]} 21. Qe3
{[%clk 0:00:43.9]} 21... Ra8 {[%clk 0:01:16.2]} 22. Rec1 {[%clk 0:00:31.2]}
22... Qb7 {[%clk 0:01:07.5]} 23. Nd2 {[%clk 0:00:16.7]} 23... h5 {[%clk
0:01:01.6]} 24. g5 {[%clk 0:00:15.7]} 24... f5 {[%clk 0:00:58.9]} 25. f3 {[%clk
0:00:15.6]} 25... fxe4 {[%clk 0:00:56.5]} 26. Ndxe4 {[%clk 0:00:15.8]} 26... Nf5
{[%clk 0:00:48.7]} 27. Qd3 {[%clk 0:00:15.4]} 27... Nd4 {[%clk 0:00:48.9]} 28.
Rf1 {[%clk 0:00:15.4]} 28... Qxb2 {[%clk 0:00:39.6]} 29. Rab1 {[%clk 0:00:08.6]}
29... Qa3 {[%clk 0:00:32.9]} 30. f4 {[%clk 0:00:09]} 30... Nc5 {[%clk
0:00:30.2]} 31. Qd2 {[%clk 0:00:03.1]} 31... Nxe4 {[%clk 0:00:26.7]} 32. Nxe4
{[%clk 0:00:03.4]} 32... Bxe4 {[%clk 0:00:27.1]} 0-1

[Event "*** Titled Tuesday Blitz"]
[Site "Chess.com"]
[Date "2020.04.28"]
[Round "2"]
[White "Mashenka97"]
[Black "Sandstad"]
[Result "0-1"]
[WhiteElo "2355"]
[BlackElo "2260"]
[TimeControl "180+1"]
[EndTime "10:17:40 PDT"]
[Termination "Sandstad won by checkmate"]

1. e4 {[%clk 0:03:00.9]} 1... c5 {[%clk 0:02:59]} 2. Nf3 {[%clk 0:03:00.1]} 2...
g6 {[%clk 0:02:59.5]} 3. d4 {[%clk 0:02:57.4]} 3... cxd4 {[%clk 0:03:00.4]} 4.
Nxd4 {[%clk 0:02:58.3]} 4... Nc6 {[%clk 0:02:59.6]} 5. Nc3 {[%clk 0:02:56.7]}
5... Bg7 {[%clk 0:02:59.8]} 6. Be3 {[%clk 0:02:55.9]} 6... Nf6 {[%clk 0:03:00]}
7. Nxc6 {[%clk 0:02:48.1]} 7... bxc6 {[%clk 0:02:59.8]} 8. e5 {[%clk 0:02:47.5]}
8... Ng8 {[%clk 0:02:59.9]} 9. f4 {[%clk 0:02:41.7]} 9... Nh6 {[%clk 0:02:58.9]}
10. Bd3 {[%clk 0:02:34.5]} 10... d6 {[%clk 0:02:58.4]} 11. exd6 {[%clk
0:02:28.8]} 11... exd6 {[%clk 0:02:57.7]} 12. O-O {[%clk 0:02:27.9]} 12... O-O
{[%clk 0:02:52.8]} 13. Re1 {[%clk 0:02:06.6]} 13... Ng4 {[%clk 0:02:48.1]} 14.
Kh1 {[%clk 0:01:58.2]} 14... Nxe3 {[%clk 0:02:43]} 15. Rxe3 {[%clk 0:01:57.7]}
15... Qh4 {[%clk 0:02:21.6]} 16. Qf1 {[%clk 0:01:45.2]} 16... d5 {[%clk
0:02:14.9]} 17. Re2 {[%clk 0:01:33.6]} 17... Bg4 {[%clk 0:02:05.2]} 18. Rd2
{[%clk 0:01:24.2]} 18... Rab8 {[%clk 0:02:01.6]} 19. Na4 {[%clk 0:01:04.1]}
19... Rb4 {[%clk 0:02:00.8]} 20. Nc5 {[%clk 0:00:59.6]} 20... Rxb2 {[%clk
0:01:56.3]} 21. h3 {[%clk 0:00:53.2]} 21... Bc8 {[%clk 0:01:44.7]} 22. f5 {[%clk
0:00:37.8]} 22... Rb4 {[%clk 0:01:35.8]} 23. Re1 {[%clk 0:00:30.9]} 23... Rf4
{[%clk 0:01:24]} 24. Qe2 {[%clk 0:00:25]} 24... Bc3 {[%clk 0:00:58.4]} 25. fxg6
{[%clk 0:00:23.5]} 25... hxg6 {[%clk 0:00:51.6]} 26. Rdd1 {[%clk 0:00:21.6]}
26... Bxe1 {[%clk 0:00:41.8]} 27. Rxe1 {[%clk 0:00:22.5]} 27... Rf2 {[%clk
0:00:38.7]} 28. Qe3 {[%clk 0:00:21.3]} 28... Qf4 {[%clk 0:00:29.1]} 29. Qe7
{[%clk 0:00:16.1]} 29... Bxh3 {[%clk 0:00:24.8]} 30. Bf1 {[%clk 0:00:10.1]}
30... Rxf1+ {[%clk 0:00:24.2]} 31. Rxf1 {[%clk 0:00:08.5]} 31... Qxf1+ {[%clk
0:00:25.1]} 32. Kh2 {[%clk 0:00:08.2]} 32... Qxg2# {[%clk 0:00:25.6]} 0-1

[Event "*** Titled Tuesday Blitz"]
[Site "Chess.com"]
[Date "2020.04.28"]
[Round "2"]
[White "dpopadic"]
[Black "Toro1234"]
[Result "0-1"]
[WhiteElo "2323"]
[BlackElo "2645"]
[TimeControl "180+1"]
[EndTime "10:17:43 PDT"]
[Termination "Toro1234 won by checkmate"]

1. e4 {[%clk 0:03:00.9]} 1... d6 {[%clk 0:02:59.7]} 2. Nc3 {[%clk 0:02:59.9]}
2... c5 {[%clk 0:02:56.3]} 3. f4 {[%clk 0:02:59.7]} 3... Nc6 {[%clk 0:02:54.9]}
4. Nf3 {[%clk 0:02:59.8]} 4... g6 {[%clk 0:02:54]} 5. Bc4 {[%clk 0:02:59.8]}
5... e6 {[%clk 0:02:52.8]} 6. d3 {[%clk 0:02:59.4]} 6... Bg7 {[%clk 0:02:51.3]}
7. O-O {[%clk 0:02:59]} 7... Nge7 {[%clk 0:02:49.9]} 8. Qe1 {[%clk 0:02:59]}
8... Na5 {[%clk 0:02:44.2]} 9. Bb3 {[%clk 0:02:50.9]} 9... O-O {[%clk
0:02:38.3]} 10. f5 {[%clk 0:02:49.7]} 10... Nxb3 {[%clk 0:02:37.3]} 11. axb3
{[%clk 0:02:49.2]} 11... exf5 {[%clk 0:02:35.7]} 12. Qh4 {[%clk 0:02:49]} 12...
f6 {[%clk 0:02:31.7]} 13. Bh6 {[%clk 0:02:44]} 13... Bd7 {[%clk 0:02:21.1]} 14.
Rae1 {[%clk 0:02:42.3]} 14... Bc6 {[%clk 0:02:15.1]} 15. Bxg7 {[%clk 0:02:25.6]}
15... Kxg7 {[%clk 0:02:14.2]} 16. Qg3 {[%clk 0:02:22.9]} 16... fxe4 {[%clk
0:02:12.1]} 17. dxe4 {[%clk 0:02:22.3]} 17... Qd7 {[%clk 0:02:06.7]} 18. Ne2
{[%clk 0:02:06.2]} 18... Rae8 {[%clk 0:01:54.3]} 19. Nf4 {[%clk 0:02:04]} 19...
Ng8 {[%clk 0:01:49.3]} 20. Nd2 {[%clk 0:01:48.9]} 20... b5 {[%clk 0:01:41.8]}
21. Nd5 {[%clk 0:01:42.2]} 21... Bxd5 {[%clk 0:01:38.1]} 22. exd5 {[%clk
0:01:42.4]} 22... Re5 {[%clk 0:01:34.5]} 23. Nf3 {[%clk 0:01:33.1]} 23... Rxd5
{[%clk 0:01:26.7]} 24. Re2 {[%clk 0:01:31.7]} 24... Re8 {[%clk 0:01:24.3]} 25.
Rfe1 {[%clk 0:01:23.5]} 25... Rxe2 {[%clk 0:01:22.2]} 26. Rxe2 {[%clk
0:01:23.8]} 26... Rd1+ {[%clk 0:01:21]} 27. Kf2 {[%clk 0:01:23.3]} 27... Qf5
{[%clk 0:01:16.6]} 28. h3 {[%clk 0:01:12.5]} 28... a5 {[%clk 0:01:14.3]} 29. Qh4
{[%clk 0:01:04.9]} 29... h5 {[%clk 0:01:03.5]} 30. Qg3 {[%clk 0:00:49.3]} 30...
g5 {[%clk 0:01:00.1]} 31. Ke3 {[%clk 0:00:31.1]} 31... Ne7 {[%clk 0:00:45.5]}
32. Kf2 {[%clk 0:00:23.6]} 32... Kf7 {[%clk 0:00:42.6]} 33. c4 {[%clk
0:00:17.6]} 33... b4 {[%clk 0:00:41.3]} 34. Ke3 {[%clk 0:00:16.4]} 34... h4
{[%clk 0:00:18.9]} 35. Qf2 {[%clk 0:00:14.3]} 35... Qf4# {[%clk 0:00:18.3]} 0-1

[Event "*** Titled Tuesday Blitz"]
[Site "Chess.com"]
[Date "2020.04.28"]
[Round "2"]
[White "GmSergioBarrientos"]
[Black "Sibelephant"]
[Result "0-1"]
[WhiteElo "2596"]
[BlackElo "3200"]
[TimeControl "180+1"]
[EndTime "10:17:44 PDT"]
[Termination "Sibelephant won by checkmate"]

1. d4 {[%clk 0:03:00.9]} 1... Nf6 {[%clk 0:02:58.9]} 2. Nf3 {[%clk 0:03:00.2]}
2... g6 {[%clk 0:02:59.2]} 3. g3 {[%clk 0:02:59]} 3... Bg7 {[%clk 0:02:59.7]} 4.
Bg2 {[%clk 0:02:59.6]} 4... d5 {[%clk 0:03:00.1]} 5. c4 {[%clk 0:02:57.4]} 5...
O-O {[%clk 0:03:00.3]} 6. O-O {[%clk 0:02:55.5]} 6... Nc6 {[%clk 0:02:59.7]} 7.
cxd5 {[%clk 0:02:46.9]} 7... Nxd5 {[%clk 0:02:59.7]} 8. Nc3 {[%clk 0:02:46.9]}
8... Nb6 {[%clk 0:02:58.2]} 9. e3 {[%clk 0:02:41.3]} 9... Re8 {[%clk 0:02:57]}
10. Nd2 {[%clk 0:02:33.1]} 10... e5 {[%clk 0:02:55.4]} 11. d5 {[%clk 0:02:31.2]}
11... Nb4 {[%clk 0:02:55.4]} 12. Nb3 {[%clk 0:02:25.6]} 12... e4 {[%clk
0:02:49.9]} 13. Nxe4 {[%clk 0:02:21]} 13... N4xd5 {[%clk 0:02:31.3]} 14. Nec5
{[%clk 0:02:20.9]} 14... Qe7 {[%clk 0:02:28.5]} 15. a3 {[%clk 0:02:15.3]} 15...
c6 {[%clk 0:02:15.5]} 16. Qc2 {[%clk 0:02:14.2]} 16... Nc7 {[%clk 0:02:08]} 17.
Bd2 {[%clk 0:02:05.8]} 17... Rd8 {[%clk 0:01:36.7]} 18. Rfe1 {[%clk 0:02:03]}
18... Ne6 {[%clk 0:01:33.6]} 19. Ne4 {[%clk 0:01:42.1]} 19... Nd5 {[%clk
0:01:29.3]} 20. Rad1 {[%clk 0:01:38.8]} 20... Bd7 {[%clk 0:01:27.2]} 21. Ba5
{[%clk 0:01:38.6]} 21... b6 {[%clk 0:01:23.1]} 22. Bd2 {[%clk 0:01:38.4]} 22...
Rac8 {[%clk 0:01:16.7]} 23. h4 {[%clk 0:01:37.6]} 23... h6 {[%clk 0:01:10.9]}
24. Nc3 {[%clk 0:01:17.5]} 24... Be8 {[%clk 0:01:10.9]} 25. h5 {[%clk
0:01:08.5]} 25... gxh5 {[%clk 0:01:07.8]} 26. Ne2 {[%clk 0:00:54.7]} 26... h4
{[%clk 0:01:02.9]} 27. Bc1 {[%clk 0:00:47.6]} 27... Nf6 {[%clk 0:00:43.7]} 28.
Nbd4 {[%clk 0:00:46.7]} 28... Nxd4 {[%clk 0:00:40.3]} 29. Nxd4 {[%clk
0:00:47.6]} 29... hxg3 {[%clk 0:00:40.4]} 30. Nf5 {[%clk 0:00:45.4]} 30... gxf2+
{[%clk 0:00:38.2]} 31. Qxf2 {[%clk 0:00:46.3]} 31... Qe5 {[%clk 0:00:36.3]} 32.
e4 {[%clk 0:00:44.5]} 32... Rxd1 {[%clk 0:00:28]} 33. Rxd1 {[%clk 0:00:44.3]}
33... Ng4 {[%clk 0:00:21.6]} 34. Qh4 {[%clk 0:00:42.4]} 34... Qc5+ {[%clk
0:00:21.2]} 35. Kf1 {[%clk 0:00:20.3]} 35... h5 {[%clk 0:00:16.9]} 36. Qg5
{[%clk 0:00:19.5]} 36... Qf2# {[%clk 0:00:15.5]} 0-1

[Event "*** Titled Tuesday Blitz"]
[Site "Chess.com"]
[Date "2020.04.28"]
[Round "2"]
[White "arminmusovic"]
[Black "Biranidun"]
[Result "0-1"]
[WhiteElo "2496"]
[BlackElo "2726"]
[TimeControl "180+1"]
[EndTime "10:17:44 PDT"]
[Termination "Biranidun won by checkmate"]

1. a3 {[%clk 0:03:00.9]} 1... e5 {[%clk 0:02:59.3]} 2. Nc3 {[%clk 0:03:01.2]}
2... d5 {[%clk 0:02:58.9]} 3. d4 {[%clk 0:03:01.6]} 3... e4 {[%clk 0:02:56.7]}
4. Bf4 {[%clk 0:02:58.4]} 4... Nf6 {[%clk 0:02:54.7]} 5. Nb5 {[%clk 0:02:52.8]}
5... Na6 {[%clk 0:02:53.3]} 6. c4 {[%clk 0:02:53.3]} 6... dxc4 {[%clk
0:02:47.4]} 7. e3 {[%clk 0:02:51.8]} 7... c6 {[%clk 0:02:47.5]} 8. Nc3 {[%clk
0:02:48.4]} 8... b5 {[%clk 0:02:47.6]} 9. Nge2 {[%clk 0:02:46.4]} 9... Bf5
{[%clk 0:02:33.8]} 10. Ng3 {[%clk 0:02:42.3]} 10... Bg6 {[%clk 0:02:34]} 11. Be5
{[%clk 0:02:39.7]} 11... Nd5 {[%clk 0:02:29.4]} 12. Ngxe4 {[%clk 0:02:25.8]}
12... f6 {[%clk 0:02:19.5]} 13. Bg3 {[%clk 0:02:19.8]} 13... Be7 {[%clk
0:02:19.4]} 14. Nxd5 {[%clk 0:02:13.9]} 14... cxd5 {[%clk 0:02:14.7]} 15. Nc3
{[%clk 0:02:13.1]} 15... Qd7 {[%clk 0:02:12.6]} 16. Be2 {[%clk 0:01:55.1]} 16...
b4 {[%clk 0:02:12.5]} 17. axb4 {[%clk 0:01:52.4]} 17... Nxb4 {[%clk 0:02:13.4]}
18. O-O {[%clk 0:01:52.1]} 18... O-O {[%clk 0:02:13.1]} 19. Bf3 {[%clk
0:01:52.6]} 19... Bd3 {[%clk 0:01:57.8]} 20. Re1 {[%clk 0:01:52.4]} 20... f5
{[%clk 0:01:57.9]} 21. Ra5 {[%clk 0:01:35.7]} 21... Be4 {[%clk 0:01:55.2]} 22.
Bxe4 {[%clk 0:01:16.9]} 22... fxe4 {[%clk 0:01:56.1]} 23. b3 {[%clk 0:01:13.6]}
23... Rac8 {[%clk 0:01:50.1]} 24. bxc4 {[%clk 0:01:09.7]} 24... Rxc4 {[%clk
0:01:49.6]} 25. Qb3 {[%clk 0:01:10.3]} 25... Rfc8 {[%clk 0:01:12.2]} 26. Ne2
{[%clk 0:00:48.6]} 26... Nd3 {[%clk 0:01:07.5]} 27. Rf1 {[%clk 0:00:31.4]} 27...
Bb4 {[%clk 0:01:05.9]} 28. Ra6 {[%clk 0:00:24.7]} 28... g5 {[%clk 0:00:45.9]}
29. h3 {[%clk 0:00:24.6]} 29... Rc2 {[%clk 0:00:40.8]} 30. Rfa1 {[%clk
0:00:07.9]} 30... Rxe2 {[%clk 0:00:33.1]} 31. Rxa7 {[%clk 0:00:07.8]} 31... Qf5
{[%clk 0:00:30.9]} 32. R1a6 {[%clk 0:00:06.3]} 32... Nxf2 {[%clk 0:00:20.6]} 33.
Rf6 {[%clk 0:00:04.9]} 33... Rc1+ {[%clk 0:00:20.2]} 34. Kh2 {[%clk 0:00:04.4]}
34... Rh1# {[%clk 0:00:20.1]} 0-1